[Event "*** Titled Tuesday Blitz"]
[Site "Chess.com"]
[Date "2019.10.01"]
[Round "5"]
[White "harvsp123"]
[Black "wonderfultime"]
[Result "1/2-1/2"]
[WhiteElo "2490"]
[BlackElo "2933"]
[TimeControl "180+2"]
[EndTime "14:13:35 PDT"]
[Termination "Game drawn by repetition"]

1. d4 {[%clk 0:03:01.9]} 1... d5 {[%clk 0:02:57.9]} 2. c4 {[%clk 0:03:01.9]}
2... c6 {[%clk 0:02:58.1]} 3. cxd5 {[%clk 0:02:53]} 3... cxd5 {[%clk 0:03:00]}
4. Bf4 {[%clk 0:02:53]} 4... Nf6 {[%clk 0:03:01.2]} 5. Nc3 {[%clk 0:02:53]} 5...
Nc6 {[%clk 0:03:02.2]} 6. e3 {[%clk 0:02:54.3]} 6... Bf5 {[%clk 0:03:03.6]} 7.
Qb3 {[%clk 0:02:54.1]} 7... Na5 {[%clk 0:03:03.7]} 8. Qa4+ {[%clk 0:02:55]} 8...
Bd7 {[%clk 0:03:05.1]} 9. Qc2 {[%clk 0:02:53.5]} 9... Rc8 {[%clk 0:03:06.4]} 10.
Bd3 {[%clk 0:02:48.5]} 10... e6 {[%clk 0:03:07.8]} 11. Nf3 {[%clk 0:02:48.2]}
11... Nc6 {[%clk 0:03:09.2]} 12. Qd1 {[%clk 0:02:09.2]} 12... Nh5 {[%clk
0:03:08.3]} 13. Be5 {[%clk 0:02:01.1]} 13... f6 {[%clk 0:02:51]} 14. Bg3 {[%clk
0:01:50.9]} 14... f5 {[%clk 0:02:45.4]} 15. Be5 {[%clk 0:01:49]} 15... Nf6
{[%clk 0:02:26.9]} 16. h3 {[%clk 0:01:48.9]} 16... Nxe5 {[%clk 0:02:17.7]} 17.
Nxe5 {[%clk 0:01:45.4]} 17... Bd6 {[%clk 0:02:19.2]} 18. O-O {[%clk 0:01:44.8]}
18... O-O {[%clk 0:02:18.9]} 19. Rc1 {[%clk 0:01:42.7]} 19... a6 {[%clk
0:02:13.2]} 20. Qb3 {[%clk 0:01:28.1]} 20... Rc7 {[%clk 0:02:01.6]} 21. Ne2
{[%clk 0:01:23.8]} 21... Qb8 {[%clk 0:01:28.9]} 22. Rxc7 {[%clk 0:01:23.8]}
22... Bxc7 {[%clk 0:01:30.8]} 23. f4 {[%clk 0:00:54.6]} 23... Rc8 {[%clk
0:01:04.6]} 24. Rc1 {[%clk 0:00:54.9]} 24... Ba5 {[%clk 0:01:04.2]} 25. Rc2
{[%clk 0:00:47.3]} 25... Be8 {[%clk 0:00:56]} 26. g4 {[%clk 0:00:44.7]} 26... g6
{[%clk 0:00:55.9]} 27. Kg2 {[%clk 0:00:43.8]} 27... Rc7 {[%clk 0:00:47]} 28. g5
{[%clk 0:00:39.9]} 28... Nd7 {[%clk 0:00:45.4]} 29. Nxd7 {[%clk 0:00:35.2]}
29... Bxd7 {[%clk 0:00:47.3]} 30. Ng1 {[%clk 0:00:36.6]} 30... b5 {[%clk
0:00:31.1]} 31. Nf3 {[%clk 0:00:36.8]} 31... Rc4 {[%clk 0:00:20.1]} 32. Ne5
{[%clk 0:00:30.2]} 32... Qc7 {[%clk 0:00:20.7]} 33. Nxd7 {[%clk 0:00:17]} 33...
Rxc2+ {[%clk 0:00:17.8]} 34. Qxc2 {[%clk 0:00:15.3]} 34... Qxd7 {[%clk
0:00:19.7]} 35. a3 {[%clk 0:00:16.4]} 35... Kg7 {[%clk 0:00:18.8]} 36. b4 {[%clk
0:00:17.3]} 36... Bb6 {[%clk 0:00:19.9]} 37. Qc3 {[%clk 0:00:18.3]} 37... h6
{[%clk 0:00:20]} 38. h4 {[%clk 0:00:19.1]} 38... hxg5 {[%clk 0:00:21.5]} 39.
hxg5 {[%clk 0:00:21]} 39... Kf7 {[%clk 0:00:19.9]} 40. Qc1 {[%clk 0:00:21.6]}
40... Ke7 {[%clk 0:00:15.5]} 41. Qh1 {[%clk 0:00:23]} 41... Kd6 {[%clk
0:00:16.4]} 42. Qh8 {[%clk 0:00:22.6]} 42... Qc7 {[%clk 0:00:06.3]} 43. Qf8+
{[%clk 0:00:19.8]} 43... Kd7 {[%clk 0:00:07.8]} 44. Qf7+ {[%clk 0:00:20.7]}
44... Kd6 {[%clk 0:00:09.4]} 45. Qf8+ {[%clk 0:00:14.4]} 45... Kd7 {[%clk
0:00:10.3]} 46. Qf7+ {[%clk 0:00:12.7]} 46... Kd6 {[%clk 0:00:11.7]} 47. Qxg6
{[%clk 0:00:08.8]} 47... Qc3 {[%clk 0:00:12.4]} 48. Bxf5 {[%clk 0:00:10.4]}
48... Qd2+ {[%clk 0:00:13]} 49. Kf3 {[%clk 0:00:11.1]} 49... Qd1+ {[%clk
0:00:14.2]} 50. Kg3 {[%clk 0:00:12.5]} 50... Qe1+ {[%clk 0:00:14.8]} 51. Kf3
{[%clk 0:00:14]} 51... Qf1+ {[%clk 0:00:15.9]} 52. Kg3 {[%clk 0:00:15.1]} 52...
Qg1+ {[%clk 0:00:16.9]} 53. Kh4 {[%clk 0:00:15.9]} 53... Qf2+ {[%clk 0:00:14]}
54. Kg4 {[%clk 0:00:17]} 54... Qg2+ {[%clk 0:00:12.9]} 55. Kh4 {[%clk
0:00:18.1]} 55... Qf2+ {[%clk 0:00:13.9]} 56. Kg4 {[%clk 0:00:19.1]} 56... Qg2+
{[%clk 0:00:14.3]} 57. Kh4 {[%clk 0:00:20.2]} 57... Qf2+ {[%clk 0:00:14.2]}
1/2-1/2

[Event "*** Titled Tuesday Blitz"]
[Site "Chess.com"]
[Date "2019.10.01"]
[Round "5"]
[White "Nbk90"]
[Black "GremioPrudente"]
[Result "0-1"]
[WhiteElo "2468"]
[BlackElo "2282"]
[TimeControl "180+2"]
[EndTime "14:13:40 PDT"]
[Termination "GremioPrudente won by resignation"]

1. d4 {[%clk 0:03:01.9]} 1... d5 {[%clk 0:03:00.8]} 2. c4 {[%clk 0:03:01.5]}
2... c6 {[%clk 0:03:02]} 3. Nf3 {[%clk 0:03:00.5]} 3... e6 {[%clk 0:03:03]} 4.
Nc3 {[%clk 0:02:53]} 4... dxc4 {[%clk 0:03:03.7]} 5. a4 {[%clk 0:02:52.5]} 5...
Bb4 {[%clk 0:03:02.9]} 6. e4 {[%clk 0:02:51.4]} 6... b5 {[%clk 0:02:58.6]} 7.
Be2 {[%clk 0:02:52]} 7... Bb7 {[%clk 0:02:25.4]} 8. O-O {[%clk 0:02:47.5]} 8...
a6 {[%clk 0:02:19.2]} 9. Qc2 {[%clk 0:02:40.2]} 9... Nf6 {[%clk 0:02:14.6]} 10.
e5 {[%clk 0:02:36.4]} 10... Nd5 {[%clk 0:02:05.3]} 11. Ne4 {[%clk 0:02:36]}
11... Nd7 {[%clk 0:02:02.4]} 12. b3 {[%clk 0:02:30.5]} 12... cxb3 {[%clk
0:01:54.8]} 13. Qxb3 {[%clk 0:02:30.5]} 13... O-O {[%clk 0:01:56.3]} 14. Qc2
{[%clk 0:02:17.4]} 14... N7b6 {[%clk 0:01:50.6]} 15. Neg5 {[%clk 0:02:17]} 15...
g6 {[%clk 0:01:45.4]} 16. axb5 {[%clk 0:02:04.6]} 16... cxb5 {[%clk 0:01:40.5]}
17. Bd2 {[%clk 0:01:46.8]} 17... Rc8 {[%clk 0:01:35.1]} 18. Qe4 {[%clk
0:01:46.1]} 18... Bxd2 {[%clk 0:01:28.6]} 19. Qh4 {[%clk 0:01:46.6]} 19... Bxg5
{[%clk 0:01:18.1]} 20. Nxg5 {[%clk 0:01:46.5]} 20... h5 {[%clk 0:01:19.4]} 21.
Bxh5 {[%clk 0:01:43]} 21... Kg7 {[%clk 0:01:16.2]} 22. Bxg6 {[%clk 0:01:31.3]}
22... Kxg6 {[%clk 0:01:14.2]} 23. Qh7+ {[%clk 0:01:27.1]} 23... Kxg5 {[%clk
0:01:13.3]} 24. Qg7+ {[%clk 0:01:08.5]} 24... Kf5 {[%clk 0:00:50]} 25. Qh7+
{[%clk 0:01:07]} 25... Kg5 {[%clk 0:00:45.7]} 26. h4+ {[%clk 0:00:59.8]} 26...
Kf4 {[%clk 0:00:37.5]} 27. Rae1 {[%clk 0:00:53.7]} 27... Nc3 {[%clk 0:00:30.3]}
28. Qh6+ {[%clk 0:00:41.3]} 28... Kg4 {[%clk 0:00:24.2]} 29. Re3 {[%clk
0:00:34.1]} 29... Ne2+ {[%clk 0:00:18.4]} 30. Rxe2 {[%clk 0:00:32.8]} 30... Qxh4
{[%clk 0:00:15.5]} 31. Qg7+ {[%clk 0:00:19.8]} 31... Qg5 {[%clk 0:00:16.1]} 32.
f3+ {[%clk 0:00:18.2]} 32... Kf4 {[%clk 0:00:09.7]} 33. Qh7 {[%clk 0:00:13.1]}
33... Qg6 {[%clk 0:00:05.7]} 34. Qh4+ {[%clk 0:00:11.9]} 34... Kf5 {[%clk
0:00:06]} 35. g4+ {[%clk 0:00:11.7]} 35... Kf4 {[%clk 0:00:06.4]} 36. Kg2 {[%clk
0:00:10.3]} 36... Rh8 {[%clk 0:00:05.8]} 37. Qg3+ {[%clk 0:00:10.9]} 37... Kg5
{[%clk 0:00:07]} 38. Kf2 {[%clk 0:00:10.2]} 38... Kh6 {[%clk 0:00:07.5]} 39. Re3
{[%clk 0:00:09.5]} 39... Kg7 {[%clk 0:00:08.6]} 40. Qf4 {[%clk 0:00:09.7]} 40...
Qh6 {[%clk 0:00:09]} 41. g5 {[%clk 0:00:09.4]} 41... Qh2+ {[%clk 0:00:09.8]} 42.
Qxh2 {[%clk 0:00:10.6]} 42... Rxh2+ {[%clk 0:00:10.7]} 43. Kg3 {[%clk
0:00:11.9]} 43... Rch8 {[%clk 0:00:11.1]} 44. g6 {[%clk 0:00:12.6]} 44... fxg6
{[%clk 0:00:11.2]} 45. Rc3 {[%clk 0:00:11.8]} 45... R8h3+ {[%clk 0:00:12.1]} 46.
Kg4 {[%clk 0:00:11.6]} 46... Rh4+ {[%clk 0:00:13.6]} 47. Kg3 {[%clk 0:00:12]}
47... R2h3+ {[%clk 0:00:15.1]} 48. Kg2 {[%clk 0:00:12.7]} 48... Nd5 {[%clk
0:00:15.5]} 49. Rc5 {[%clk 0:00:12.4]} 49... Kh6 {[%clk 0:00:16.2]} 50. Kf2
{[%clk 0:00:11.5]} 50... Rh2+ {[%clk 0:00:16.5]} 51. Ke1 {[%clk 0:00:12.3]}
51... Ne3 {[%clk 0:00:16.1]} 52. Rf2 {[%clk 0:00:11.7]} 52... Rxf2 {[%clk
0:00:15.9]} 53. Kxf2 {[%clk 0:00:12.9]} 53... Nd5 {[%clk 0:00:16.8]} 54. Rc1
{[%clk 0:00:11.8]} 54... Rxd4 {[%clk 0:00:17.5]} 0-1

[Event "*** Titled Tuesday Blitz"]
[Site "Chess.com"]
[Date "2019.10.01"]
[Round "5"]
[White "kosmeg"]
[Black "yuki_chess123"]
[Result "1-0"]
[WhiteElo "2498"]
[BlackElo "2181"]
[TimeControl "180+2"]
[EndTime "14:13:41 PDT"]
[Termination "kosmeg won by resignation"]

1. d4 {[%clk 0:03:01.9]} 1... g6 {[%clk 0:02:59.6]} 2. e4 {[%clk 0:03:02.5]}
2... Bg7 {[%clk 0:03:00.6]} 3. Nf3 {[%clk 0:03:04]} 3... c6 {[%clk 0:03:01.9]}
4. Bd3 {[%clk 0:03:02.5]} 4... d5 {[%clk 0:03:02.9]} 5. exd5 {[%clk 0:03:03.8]}
5... cxd5 {[%clk 0:03:03.1]} 6. O-O {[%clk 0:03:04.9]} 6... Nc6 {[%clk
0:03:03.3]} 7. c3 {[%clk 0:03:05.4]} 7... Bg4 {[%clk 0:03:01.9]} 8. Nbd2 {[%clk
0:03:05.4]} 8... Nf6 {[%clk 0:03:02.6]} 9. h3 {[%clk 0:03:06.5]} 9... Bxf3
{[%clk 0:03:00.8]} 10. Nxf3 {[%clk 0:03:08.4]} 10... O-O {[%clk 0:03:02]} 11.
Re1 {[%clk 0:03:09.5]} 11... a6 {[%clk 0:02:52.8]} 12. a4 {[%clk 0:03:09.2]}
12... Re8 {[%clk 0:02:47.7]} 13. Bf4 {[%clk 0:03:02.2]} 13... Nd7 {[%clk
0:02:45.3]} 14. Qd2 {[%clk 0:02:36.5]} 14... e5 {[%clk 0:02:45.5]} 15. dxe5
{[%clk 0:02:36.3]} 15... Ndxe5 {[%clk 0:02:46.7]} 16. Nxe5 {[%clk 0:02:34]}
16... Nxe5 {[%clk 0:02:47.8]} 17. Bf1 {[%clk 0:02:30.1]} 17... Qd7 {[%clk
0:02:26.1]} 18. a5 {[%clk 0:02:22.8]} 18... Rad8 {[%clk 0:02:23.5]} 19. Bg5
{[%clk 0:02:08.4]} 19... Rc8 {[%clk 0:02:22.2]} 20. Rad1 {[%clk 0:02:07.6]}
20... Qf5 {[%clk 0:02:15.8]} 21. Be3 {[%clk 0:01:59.4]} 21... Nc4 {[%clk
0:01:48.1]} 22. Bxc4 {[%clk 0:01:59.2]} 22... dxc4 {[%clk 0:01:49]} 23. Qd5
{[%clk 0:01:52.8]} 23... Qxd5 {[%clk 0:01:43.5]} 24. Rxd5 {[%clk 0:01:54.7]}
24... Bh6 {[%clk 0:01:27]} 25. Rd7 {[%clk 0:01:48.2]} 25... Bxe3 {[%clk
0:01:27.6]} 26. Rxe3 {[%clk 0:01:46.8]} 26... Rxe3 {[%clk 0:01:27.9]} 27. fxe3
{[%clk 0:01:48.7]} 27... Rc5 {[%clk 0:01:29.2]} 28. Rxb7 {[%clk 0:01:48.5]}
28... Rxa5 {[%clk 0:01:30.4]} 29. Kf2 {[%clk 0:01:45.5]} 29... Rd5 {[%clk
0:01:01.6]} 30. Ke2 {[%clk 0:01:38.5]} 30... h5 {[%clk 0:00:59.4]} 31. Rb4
{[%clk 0:01:37.8]} 31... Rc5 {[%clk 0:00:58.2]} 32. e4 {[%clk 0:01:28.9]} 32...
Kg7 {[%clk 0:00:56.2]} 33. Ke3 {[%clk 0:01:29.6]} 33... h4 {[%clk 0:00:55.8]}
34. Rb6 {[%clk 0:01:05]} 34... a5 {[%clk 0:00:45.9]} 35. Rd6 {[%clk 0:01:05.7]}
35... Rb5 {[%clk 0:00:45.1]} 36. Rd2 {[%clk 0:01:06.7]} 36... Kf6 {[%clk
0:00:45.6]} 37. Kd4 {[%clk 0:01:07.8]} 37... Re5 {[%clk 0:00:39.7]} 38. Re2
{[%clk 0:01:03.4]} 38... Ke6 {[%clk 0:00:32.1]} 39. Kxc4 {[%clk 0:01:04]} 39...
Kd6 {[%clk 0:00:21.4]} 40. Kd4 {[%clk 0:01:02]} 40... Rg5 {[%clk 0:00:16.9]} 41.
Rf2 {[%clk 0:00:57]} 41... Ke6 {[%clk 0:00:15.5]} 42. c4 {[%clk 0:00:51.7]}
42... f6 {[%clk 0:00:13]} 43. c5 {[%clk 0:00:51.3]} 43... Rg3 {[%clk 0:00:13.3]}
44. Rc2 {[%clk 0:00:51.9]} 44... Kd7 {[%clk 0:00:13.1]} 45. c6+ {[%clk
0:00:50.4]} 45... Kc7 {[%clk 0:00:14.1]} 46. Kd5 {[%clk 0:00:51.8]} 46... Rd3+
{[%clk 0:00:12.3]} 47. Ke6 {[%clk 0:00:50.9]} 47... Rd6+ {[%clk 0:00:11.2]} 48.
Kf7 {[%clk 0:00:51.8]} 48... g5 {[%clk 0:00:11.1]} 49. Kg6 {[%clk 0:00:52.1]}
49... a4 {[%clk 0:00:11.1]} 50. Kf5 {[%clk 0:00:50.2]} 50... Kc8 {[%clk
0:00:03.1]} 51. c7 {[%clk 0:00:47.4]} 51... Rb6 {[%clk 0:00:04.1]} 52. e5 {[%clk
0:00:46.8]} 52... fxe5 {[%clk 0:00:04.3]} 53. Kxe5 {[%clk 0:00:48.1]} 53... Rb7
{[%clk 0:00:02.3]} 54. Kd6 {[%clk 0:00:43]} 54... Rb6+ {[%clk 0:00:03.3]} 55.
Ke5 {[%clk 0:00:39]} 55... Rb7 {[%clk 0:00:03.8]} 56. Kf5 {[%clk 0:00:39.2]}
56... Rb5+ {[%clk 0:00:04.9]} 57. Kg4 {[%clk 0:00:40.5]} 57... Ra5 {[%clk
0:00:05.7]} 58. Rc4 {[%clk 0:00:37.5]} 58... a3 {[%clk 0:00:04.1]} 59. bxa3
{[%clk 0:00:36.3]} 59... Rxa3 {[%clk 0:00:05.3]} 60. Kxg5 {[%clk 0:00:36.9]}
60... Rg3+ {[%clk 0:00:06.5]} 61. Kxh4 {[%clk 0:00:38.2]} 61... Rxg2 {[%clk
0:00:07.6]} 62. Kh5 {[%clk 0:00:38.8]} 62... Rg1 {[%clk 0:00:08.9]} 63. h4
{[%clk 0:00:40.1]} 63... Rg2 {[%clk 0:00:10]} 64. Kh6 {[%clk 0:00:41.1]} 64...
Rg3 {[%clk 0:00:11.2]} 65. h5 {[%clk 0:00:42.3]} 65... Rg4 {[%clk 0:00:12]} 66.
Rxg4 {[%clk 0:00:41.8]} 1-0

[Event "*** Titled Tuesday Blitz"]
[Site "Chess.com"]
[Date "2019.10.01"]
[Round "5"]
[White "Saitama_Hero"]
[Black "Natalya_Buksa"]
[Result "0-1"]
[WhiteElo "2330"]
[BlackElo "2446"]
[TimeControl "180+2"]
[EndTime "14:13:47 PDT"]
[Termination "Natalya_Buksa won by resignation"]

1. d4 {[%clk 0:03:01.9]} 1... d5 {[%clk 0:02:58.3]} 2. c4 {[%clk 0:03:03.4]}
2... e6 {[%clk 0:03:00.2]} 3. Nf3 {[%clk 0:03:02.9]} 3... Nf6 {[%clk 0:03:01.6]}
4. Nc3 {[%clk 0:03:04.4]} 4... a6 {[%clk 0:03:02.9]} 5. e3 {[%clk 0:03:00.4]}
5... Nbd7 {[%clk 0:03:01.5]} 6. b3 {[%clk 0:02:56.7]} 6... dxc4 {[%clk
0:03:02.1]} 7. bxc4 {[%clk 0:02:56.3]} 7... b6 {[%clk 0:03:03.6]} 8. Bb2 {[%clk
0:02:56.2]} 8... Bb7 {[%clk 0:03:05.5]} 9. Bd3 {[%clk 0:02:56.9]} 9... Bb4
{[%clk 0:03:05.1]} 10. O-O {[%clk 0:02:57.7]} 10... O-O {[%clk 0:03:07]} 11. Ne2
{[%clk 0:02:42]} 11... Ne4 {[%clk 0:03:04.6]} 12. Qb1 {[%clk 0:02:11.7]} 12...
f5 {[%clk 0:02:58.9]} 13. Nf4 {[%clk 0:02:10.4]} 13... Qe8 {[%clk 0:02:58]} 14.
d5 {[%clk 0:02:04.3]} 14... exd5 {[%clk 0:02:50.7]} 15. Bxg7 {[%clk 0:02:02.4]}
15... Kxg7 {[%clk 0:02:51.4]} 16. Qxb4 {[%clk 0:02:01.6]} 16... c5 {[%clk
0:02:27.6]} 17. Qb2+ {[%clk 0:02:00.6]} 17... Kg8 {[%clk 0:02:24.5]} 18. cxd5
{[%clk 0:01:58.3]} 18... b5 {[%clk 0:02:16.3]} 19. Ne6 {[%clk 0:01:55.3]} 19...
Rf7 {[%clk 0:02:17.5]} 20. Nc7 {[%clk 0:01:55.6]} 20... Qd8 {[%clk 0:02:16.9]}
21. Nxa8 {[%clk 0:01:55.1]} 21... Bxa8 {[%clk 0:02:18.5]} 22. Rad1 {[%clk
0:01:30.7]} 22... Rg7 {[%clk 0:02:12.9]} 23. g3 {[%clk 0:01:15.9]} 23... Qe7
{[%clk 0:01:58.5]} 24. Nd2 {[%clk 0:00:43]} 24... Nd6 {[%clk 0:01:50.1]} 25. Qa3
{[%clk 0:00:30.2]} 25... Bxd5 {[%clk 0:01:19.8]} 26. Qxa6 {[%clk 0:00:28.6]}
26... c4 {[%clk 0:01:16.9]} 27. Bb1 {[%clk 0:00:28.7]} 27... Ne5 {[%clk
0:01:07.7]} 28. Rfe1 {[%clk 0:00:27.3]} 28... Bb7 {[%clk 0:01:05.1]} 29. Qa7
{[%clk 0:00:23]} 29... Rf7 {[%clk 0:01:03.5]} 30. Qd4 {[%clk 0:00:22.2]} 30...
Qe6 {[%clk 0:00:44.4]} 31. f4 {[%clk 0:00:22.6]} 31... Nc6 {[%clk 0:00:37.3]}
32. Qc5 {[%clk 0:00:21]} 32... Rc7 {[%clk 0:00:25.3]} 33. e4 {[%clk 0:00:22.2]}
33... Ne7 {[%clk 0:00:25.1]} 34. Qe5 {[%clk 0:00:21.3]} 34... Qxe5 {[%clk
0:00:23.6]} 35. fxe5 {[%clk 0:00:23.2]} 35... Nxe4 {[%clk 0:00:24.8]} 36. Nxe4
{[%clk 0:00:24.8]} 36... fxe4 {[%clk 0:00:25.1]} 37. Bxe4 {[%clk 0:00:26.7]}
37... Bxe4 {[%clk 0:00:20.6]} 38. Rxe4 {[%clk 0:00:28.6]} 38... Kf7 {[%clk
0:00:22]} 39. Red4 {[%clk 0:00:28.9]} 39... Ke6 {[%clk 0:00:23]} 40. Re1 {[%clk
0:00:28.1]} 40... b4 {[%clk 0:00:23]} 41. Rd6+ {[%clk 0:00:27.7]} 41... Kf5
{[%clk 0:00:23.4]} 42. Rf6+ {[%clk 0:00:28.7]} 42... Kg5 {[%clk 0:00:24.6]} 43.
h4+ {[%clk 0:00:26.8]} 43... Kh5 {[%clk 0:00:25.5]} 44. Kg2 {[%clk 0:00:26.1]}
44... c3 {[%clk 0:00:26.7]} 45. Kh3 {[%clk 0:00:26.6]} 45... Rc4 {[%clk
0:00:23.6]} 46. Rg1 {[%clk 0:00:26.6]} 46... Rg4 {[%clk 0:00:22.9]} 47. Rh6+
{[%clk 0:00:20.4]} 47... Kxh6 {[%clk 0:00:23.2]} 48. Kxg4 {[%clk 0:00:22.3]}
48... Nd5 {[%clk 0:00:23.7]} 49. Kf3 {[%clk 0:00:19]} 49... Kg6 {[%clk
0:00:22.9]} 50. Ke4 {[%clk 0:00:18.8]} 50... Nb6 {[%clk 0:00:23.8]} 51. Rf1
{[%clk 0:00:17.1]} 51... Nc4 {[%clk 0:00:24.7]} 52. Rf6+ {[%clk 0:00:13.2]}
52... Kg7 {[%clk 0:00:25.9]} 53. Rc6 {[%clk 0:00:14.7]} 53... Nd2+ {[%clk
0:00:26.5]} 54. Kd5 {[%clk 0:00:13.5]} 54... Nf1 {[%clk 0:00:27]} 55. e6 {[%clk
0:00:14.3]} 55... Ne3+ {[%clk 0:00:28.1]} 56. Ke4 {[%clk 0:00:15.1]} 56... Nf1
{[%clk 0:00:27.8]} 57. Ke5 {[%clk 0:00:14.9]} 57... Nxg3 {[%clk 0:00:28.8]} 58.
Rc7+ {[%clk 0:00:16.3]} 58... Kg6 {[%clk 0:00:29.3]} 59. Kd6 {[%clk 0:00:15.3]}
59... Nf5+ {[%clk 0:00:27.6]} 60. Kd7 {[%clk 0:00:16.5]} 60... Kf6 {[%clk
0:00:29]} 61. Rc6 {[%clk 0:00:12.8]} 61... Ne7 {[%clk 0:00:26.5]} 62. Rc4 {[%clk
0:00:14]} 62... Nd5 {[%clk 0:00:25.7]} 63. Rd4 {[%clk 0:00:13.2]} 63... c2
{[%clk 0:00:24.5]} 64. Rc4 {[%clk 0:00:11]} 64... Nb6+ {[%clk 0:00:25.5]} 0-1

[Event "*** Titled Tuesday Blitz"]
[Site "Chess.com"]
[Date "2019.10.01"]
[Round "5"]
[White "ShahMatKanal"]
[Black "politeplayer"]
[Result "1-0"]
[WhiteElo "2444"]
[BlackElo "2194"]
[TimeControl "180+2"]
[EndTime "14:13:48 PDT"]
[Termination "ShahMatKanal won on time"]

1. d4 {[%clk 0:03:01.9]} 1... d5 {[%clk 0:02:58.8]} 2. c4 {[%clk 0:03:03.2]}
2... e6 {[%clk 0:02:58.7]} 3. Nc3 {[%clk 0:03:04.6]} 3... Bb4 {[%clk 0:02:59.8]}
4. cxd5 {[%clk 0:03:02.3]} 4... exd5 {[%clk 0:02:59.3]} 5. Bf4 {[%clk
0:02:59.2]} 5... Nf6 {[%clk 0:02:59.7]} 6. Rc1 {[%clk 0:02:57.7]} 6... c5 {[%clk
0:02:58]} 7. a3 {[%clk 0:02:38.7]} 7... Bxc3+ {[%clk 0:02:54.1]} 8. bxc3 {[%clk
0:02:31.3]} 8... cxd4 {[%clk 0:02:53.1]} 9. cxd4 {[%clk 0:02:28.6]} 9... Ne4
{[%clk 0:02:49.9]} 10. f3 {[%clk 0:01:46.3]} 10... Qa5+ {[%clk 0:02:26.6]} 11.
Bd2 {[%clk 0:01:46.8]} 11... Nxd2 {[%clk 0:02:26.6]} 12. Qxd2 {[%clk 0:01:24.4]}
12... Qxd2+ {[%clk 0:02:26.2]} 13. Kxd2 {[%clk 0:01:26.3]} 13... Nc6 {[%clk
0:02:27.3]} 14. e3 {[%clk 0:01:25.6]} 14... O-O {[%clk 0:02:25]} 15. Bd3 {[%clk
0:01:23.4]} 15... Na5 {[%clk 0:02:07.2]} 16. Rc3 {[%clk 0:01:22.2]} 16... Bd7
{[%clk 0:02:04.7]} 17. Ne2 {[%clk 0:01:22.9]} 17... Ba4 {[%clk 0:01:59.4]} 18.
Nf4 {[%clk 0:01:15.8]} 18... Rfd8 {[%clk 0:01:47.9]} 19. Rb1 {[%clk 0:01:15]}
19... Bc6 {[%clk 0:01:38.6]} 20. g4 {[%clk 0:01:09.4]} 20... Rac8 {[%clk
0:01:32.4]} 21. h4 {[%clk 0:01:09.8]} 21... Nc4+ {[%clk 0:01:27]} 22. Bxc4
{[%clk 0:01:08]} 22... dxc4 {[%clk 0:01:28.1]} 23. Ke2 {[%clk 0:01:07.7]} 23...
b5 {[%clk 0:01:28.6]} 24. h5 {[%clk 0:00:55.2]} 24... h6 {[%clk 0:01:27.4]} 25.
d5 {[%clk 0:00:53.7]} 25... Bxd5 {[%clk 0:01:11.2]} 26. Rxb5 {[%clk 0:00:54.6]}
26... Bc6 {[%clk 0:01:10.4]} 27. Rb4 {[%clk 0:00:46.1]} 27... a5 {[%clk
0:01:04.6]} 28. Rb6 {[%clk 0:00:45.7]} 28... Ba8 {[%clk 0:00:58.8]} 29. Rb5
{[%clk 0:00:30.5]} 29... Rb8 {[%clk 0:00:55.2]} 30. a4 {[%clk 0:00:19.2]} 30...
Bc6 {[%clk 0:00:51]} 31. Rxb8 {[%clk 0:00:19.7]} 31... Rxb8 {[%clk 0:00:51.8]}
32. Rxc4 {[%clk 0:00:21.6]} 32... Rb2+ {[%clk 0:00:52.2]} 33. Kd3 {[%clk
0:00:23.1]} 33... Bxf3 {[%clk 0:00:53.3]} 34. Rc5 {[%clk 0:00:18.8]} 34... Bxg4
{[%clk 0:00:47.4]} 35. Rxa5 {[%clk 0:00:19.8]} 35... Ra2 {[%clk 0:00:47.7]} 36.
Ra8+ {[%clk 0:00:19.7]} 36... Kh7 {[%clk 0:00:47.4]} 37. a5 {[%clk 0:00:21.6]}
37... Bf3 {[%clk 0:00:47.5]} 38. Ra7 {[%clk 0:00:22.7]} 38... f6 {[%clk
0:00:38]} 39. Kd4 {[%clk 0:00:22.2]} 39... Ra4+ {[%clk 0:00:34.2]} 40. Kd3
{[%clk 0:00:21.1]} 40... Ra3+ {[%clk 0:00:34.3]} 41. Kd4 {[%clk 0:00:22.1]}
41... Ra4+ {[%clk 0:00:34.5]} 42. Kc3 {[%clk 0:00:14.9]} 42... Ra3+ {[%clk
0:00:34.3]} 43. Kd2 {[%clk 0:00:16.3]} 43... Ra2+ {[%clk 0:00:34.8]} 44. Ke1
{[%clk 0:00:16.7]} 44... Be4 {[%clk 0:00:27]} 45. Ne6 {[%clk 0:00:15.4]} 45...
Ra1+ {[%clk 0:00:23]} 46. Kf2 {[%clk 0:00:15.6]} 46... Ra2+ {[%clk 0:00:23.2]}
47. Kg3 {[%clk 0:00:14.8]} 47... Rg2+ {[%clk 0:00:23.6]} 48. Kf4 {[%clk
0:00:16.1]} 48... f5 {[%clk 0:00:24.1]} 49. Nf8+ {[%clk 0:00:08.9]} 49... Kg8
{[%clk 0:00:23.6]} 50. Ng6 {[%clk 0:00:10.8]} 50... Rg4+ {[%clk 0:00:17.5]} 51.
Ke5 {[%clk 0:00:11.6]} 51... Rg5 {[%clk 0:00:18.6]} 52. Nf4 {[%clk 0:00:08]}
52... Rg1 {[%clk 0:00:15.5]} 53. Rc7 {[%clk 0:00:07.9]} 53... Ra1 {[%clk
0:00:12.8]} 54. Rc8+ {[%clk 0:00:08.2]} 54... Kf7 {[%clk 0:00:13.6]} 55. Rc7+
{[%clk 0:00:09.1]} 55... Ke8 {[%clk 0:00:11.4]} 56. Rc5 {[%clk 0:00:09.3]} 56...
Kd7 {[%clk 0:00:06.7]} 57. Ne6 {[%clk 0:00:09.4]} 57... Bd3 {[%clk 0:00:02.2]}
58. Nxg7 {[%clk 0:00:09.7]} 58... f4 {[%clk 0:00:02.2]} 59. exf4 {[%clk
0:00:10.5]} 1-0